bitfinex/quotes_BTCUSD_20250422
["timestamp","ask_amount","ask_price","bid_price","bid_amount"]
[1745328277878,0.11375594,89553.0,89541.0,0.34]
[1745328278099,0.0493,89560.0,89541.0,0.34]
[1745328278326,0.002,89560.0,89550.0,0.32294278]
[1745328278541,0.0041952,89564.0,89551.0,0.34]
[1745328278755,0.11375594,89563.0,89551.0,0.34]
[1745328278968,0.0041952,89564.0,89551.0,0.34]
[1745328280264,0.0041952,89564.0,89541.0,0.34]
[1745328280265,0.11375594,89563.0,89541.0,0.34]
[1745328280821,0.0041952,89564.0,89550.0,0.32294278]
[1745328281047,0.0041952,89564.0,89551.0,0.34223327]
[1745328281262,0.0444952,89573.0,89551.0,0.34]
[1745328281504,0.11375594,89572.0,89560.0,0.32294278]
[1745328281700,0.11375594,89572.0,89551.0,0.34]
[1745328281954,0.11375594,89572.0,89552.0,0.00223304]
[1745328282423,0.0444952,89573.0,89552.0,0.00223304]
[1745328282654,9.295e-05,89573.0,89560.0,0.32294278]
[1745328284393,0.001,89572.0,89560.0,0.32294278]
[1745328284567,0.11375594,89572.0,89551.0,0.001]
[1745328284978,0.11375594,89572.0,89551.0,0.341]
[1745328285955,0.11475594,89572.0,89551.0,0.341]
[1745328286176,0.001,89572.0,89561.0,0.34]
[1745328286375,0.001,89572.0,89560.0,0.32294278]
[1745328286376,0.001,89572.0,89569.0,0.34]
[1745328286580,0.001,89572.0,89570.0,0.00223261]
[1745328287612,0.001,89572.0,89571.0,0.00223256]
[1745328287823,9.295e-05,89573.0,89565.0,0.34]
[1745328288042,0.001,89572.0,89571.0,0.34]
[1745328288245,0.001,89572.0,89571.0,0.67704249]
[1745328288498,9.295e-05,89573.0,89572.0,1.41587006]
[1745328288676,9.295e-05,89573.0,89572.0,1.336097]
[1745328289699,9.295e-05,89573.0,89572.0,1.286188]
[1745328289903,9.295e-05,89573.0,89572.0,1.044203]
[1745328290328,9.295e-05,89573.0,89572.0,0.34]
[1745328293755,9.295e-05,89573.0,89560.0,0.48395343]
[1745328294212,0.04316225,89583.0,89560.0,0.48395343]
[1745328294403,0.04316225,89583.0,89563.0,0.00109295]
[1745328295016,0.04316225,89583.0,89570.0,0.48395343]
[1745328295218,0.01496395,89593.0,89570.0,0.48395343]
[1745328295390,0.11375594,89588.0,89570.0,0.48395343]
[1745328295592,0.01496395,89593.0,89571.0,0.00223266]
[1745328295851,0.0004231,89593.0,89571.0,0.00223266]
[1745328296062,0.000423,89589.0,89579.0,0.48395343]
[1745328296313,0.000423,89589.0,89581.0,0.34]
[1745328296961,0.000423,89589.0,89585.0,0.22325075]
[1745328297162,0.000423,89589.0,89586.0,0.22548043]
[1745328297522,0.000423,89589.0,89586.0,0.00223225]
[1745328297736,0.000423,89589.0,89588.0,0.34]
[1745328297905,0.000423,89589.0,89588.0,0.45375594]
[1745328298616,0.000423,89589.0,89588.0,0.86845594]
[1745328298821,0.0002691,89596.0,89595.0,0.56322674]
[1745328299022,0.0002691,89596.0,89595.0,3.66584968]
[1745328299233,0.0002691,89596.0,89595.0,4.08054968]
[1745328299435,0.0002691,89596.0,89595.0,1.93003568]
[1745328299873,0.0002691,89596.0,89595.0,1.73753268]
[1745328300494,0.0002691,89596.0,89595.0,1.09168268]
[1745328301414,0.0002691,89596.0,89595.0,1.76441468]
[1745328301795,0.0002691,89596.0,89595.0,1.60923568]
[1745328302000,0.0002691,89596.0,89595.0,1.41919168]
[1745328302205,0.0002691,89596.0,89595.0,1.25897668]
[1745328302436,0.0002691,89596.0,89595.0,1.25697668]
[1745328302788,0.0002691,89596.0,89595.0,1.25897668]
[1745328303767,0.0002691,89596.0,89595.0,0.167294]
[1745328304004,0.0002691,89596.0,89595.0,0.002]
[1745328304223,0.0002691,89596.0,89557.0,0.0453]
[1745328304224,0.01454085,89576.0,89539.0,0.4147]
[1745328304588,0.6387754,89596.0,89564.0,9.295e-05]
[1745328304589,0.22325693,89583.0,89564.0,9.295e-05]
[1745328304797,0.11375594,89582.0,89564.0,9.295e-05]
[1745328305165,0.0111637,89576.0,89564.0,9.295e-05]
[1745328305321,0.52125594,89575.0,89564.0,9.295e-05]
[1745328305528,0.0111642,89572.0,89564.0,9.295e-05]
[1745328305742,0.01116482,89567.0,89564.0,0.00209295]
[1745328305956,0.33705738,89566.0,89564.0,0.00209295]
[1745328306176,0.33705738,89566.0,89517.0,0.0008456]
[1745328306177,0.22335958,89542.0,89519.0,0.11356]
[1745328306384,0.01116744,89546.0,89518.0,0.00046277]
[1745328306385,0.11375594,89541.0,89518.0,0.00046277]
[1745328306650,0.01116906,89533.0,89518.0,0.00046277]
[1745328306823,0.02571016,89531.0,89518.0,0.00046277]
[1745328307045,0.01454085,89525.0,89518.0,0.00046277]
[1745328307266,0.01117043,89522.0,89518.0,0.00046277]
[1745328307499,0.01454085,89520.0,89518.0,0.00046277]
[1745328307693,0.12829679,89519.0,89518.0,0.00046277]
[1745328307941,0.11375594,89519.0,89518.0,0.00046277]
[1745328308315,0.002,89525.0,89518.0,0.00046277]
[1745328308520,0.11375594,89524.0,89518.0,0.00046277]
[1745328308726,0.27198551,89532.0,89518.0,0.00046277]
[1745328308727,0.0486,89532.0,89518.0,0.00046277]
[1745328308939,0.004467,89577.0,89518.0,0.00046277]
[1745328308940,0.004,89520.0,89519.0,1.5862516]
[1745328309146,0.004,89520.0,89519.0,0.45375594]
[1745328309347,0.004,89520.0,89519.0,1.19075394]
[1745328309524,0.0486,89550.0,89520.0,0.34]
[1745328309849,0.0486,89550.0,89518.0,0.00046277]
[1745328309850,0.01454085,89548.0,89521.0,0.34]
[1745328309983,0.01454085,89546.0,89521.0,0.34]
[1745328310182,0.11375594,89545.0,89521.0,0.34]
[1745328310387,0.01454085,89542.0,89521.0,0.34]
[1745328310731,0.01454085,89535.0,89518.0,0.00046277]
[1745328310946,0.003,89519.0,89518.0,0.00046277]
[1745328311071,0.23793464,89528.0,89518.0,0.00046277]
[1745328311272,0.11375594,89534.0,89518.0,0.00046277]
[1745328311273,0.01454085,89526.0,89518.0,0.00046277]
[1745328311472,0.11375594,89527.0,89518.0,0.00046277]
[1745328311678,0.4075,89534.0,89518.0,0.00269697]
[1745328311885,0.0486,89550.0,89525.0,0.34]
[1745328312091,0.11375594,89549.0,89525.0,0.34]
[1745328312712,0.003,89527.0,89525.0,0.34]
[1745328312940,0.003,89527.0,89526.0,0.11598964]
[1745328313117,0.003,89527.0,89526.0,1.01936594]
[1745328313326,0.003,89527.0,89526.0,0.80495994]
[1745328313718,0.003,89527.0,89526.0,0.69672394]
[1745328313923,0.0455,89553.0,89527.0,0.34]
[1745328314140,0.01116719,89548.0,89531.0,0.34]
[1745328314339,0.12829679,89552.0,89522.0,0.34]
[1745328314340,0.01454085,89545.0,89522.0,0.34]
[1745328314601,0.01454085,89537.0,89522.0,0.34]
[1745328314844,0.01454085,89535.0,89518.0,0.00046277]
[1745328315016,0.002,89527.0,89518.0,0.00046277]
[1745328315236,0.11375594,89526.0,89518.0,0.00046277]
[1745328315468,0.01454085,89525.0,89518.0,0.00046277]
[1745328315597,0.11375594,89524.0,89518.0,0.00046277]
[1745328316407,0.02570991,89533.0,89518.0,0.00046277]
[1745328316408,0.01454085,89533.0,89518.0,0.00046277]
[1745328316650,0.01454085,89531.0,89518.0,0.00046277]
[1745328316849,0.11375594,89530.0,89518.0,0.00046277]
[1745328317886,0.001,89527.0,89518.0,0.00046277]
[1745328318095,0.11375594,89526.0,89518.0,0.00046277]
[1745328318437,0.003,89530.0,89520.0,0.34]
[1745328318662,0.003,89530.0,89523.0,0.11366292]
[1745328318873,0.003,89530.0,89520.0,0.82100169]
[1745328319065,0.3869,89550.0,89521.0,0.22341126]
[1745328319403,0.02570816,89547.0,89520.0,0.59758799]
[1745328319538,0.003,89526.0,89520.0,0.59758799]
[1745328319987,0.003,89526.0,89521.0,0.00223393]
[1745328320337,0.003,89526.0,89525.0,0.22340128]
[1745328320542,0.003,89526.0,89525.0,0.33715722]
[1745328320741,0.0469,89565.0,89545.0,0.22335138]
[1745328321003,0.16065594,89565.0,89550.0,0.59758799]
[1745328322345,0.15765594,89565.0,89550.0,0.59758799]
[1745328323442,0.004,89565.0,89553.0,0.22333008]
[1745328323661,0.004,89565.0,89554.0,0.931497]
[1745328323874,0.004,89565.0,89563.0,0.22330536]
[1745328324076,0.004,89565.0,89564.0,2.28669834]
[1745328324284,0.004,89565.0,89564.0,2.38446594]
[1745328324636,0.0004,89599.0,89565.0,0.56330151]
[1745328324842,0.0004,89599.0,89565.0,3.76592445]
[1745328326117,0.01243031,89596.0,89565.0,3.428867]
[1745328326332,0.01116245,89586.0,89565.0,0.34]
[1745328326500,0.01116245,89586.0,89553.0,0.11364]
[1745328326845,0.0111627,89584.0,89554.0,0.34]
[1745328327059,0.0111627,89584.0,89565.0,0.002]
[1745328327060,0.01116308,89581.0,89565.0,0.002]
[1745328327262,0.01116295,89582.0,89565.0,0.002]
[1745328327461,0.0465,89575.0,89554.0,0.34]
[1745328327867,0.0465,89575.0,89553.0,0.344]
[1745328328162,0.0465,89575.0,89553.0,0.34]
[1745328328537,0.002,89566.0,89553.0,0.56333065]
[1745328328884,0.001,89566.0,89553.0,0.56333065]
[1745328329086,0.001,89566.0,89565.0,0.56330151]
[1745328329286,0.001,89566.0,89565.0,0.949429]
[1745328329618,0.001,89566.0,89565.0,0.34]
[1745328330052,0.0405,89589.0,89566.0,0.56329677]
[1745328330258,0.0406387,89589.0,89571.0,0.34]
[1745328331122,0.0406387,89589.0,89579.0,0.59758799]
[1745328332012,0.0426387,89589.0,89579.0,0.59758799]
[1745328332559,0.0466387,89589.0,89579.0,0.59758799]
[1745328333340,0.0466387,89589.0,89556.0,0.4147]
[1745328333341,0.12829679,89588.0,89557.0,0.34]
[1745328333546,0.12829679,89588.0,89571.0,0.34]
[1745328333997,0.11375594,89588.0,89571.0,0.34]
[1745328334206,0.11375594,89588.0,89578.0,0.59758799]
[1745328336152,0.01454085,89587.0,89571.0,0.34]
[1745328336340,0.13176565,89586.0,89571.0,0.34]
[1745328336953,0.11375594,89586.0,89571.0,0.34]
[1745328337760,0.10675594,89586.0,89571.0,0.34]
[1745328338353,0.0406387,89589.0,89572.0,0.22328406]
[1745328338556,0.0406387,89589.0,89578.0,0.4839001]
[1745328338752,0.002,89588.0,89578.0,0.7071691]
[1745328338982,0.0406387,89589.0,89578.0,0.4839001]
[1745328339190,0.0001387,89589.0,89588.0,0.34]
[1745328339847,0.0001387,89589.0,89588.0,0.56324418]
[1745328340962,0.0001387,89589.0,89588.0,0.67700012]
[1745328341280,0.0021387,89589.0,89588.0,0.67700012]
[1745328341729,0.0001387,89589.0,89588.0,0.67800012]
[1745328342597,0.0001387,89589.0,89588.0,4.08156712]
[1745328342766,0.0004,89599.0,89595.0,0.56322674]
[1745328342941,0.0004,89599.0,89598.0,0.56321926]
[1745328343134,0.0004,89599.0,89598.0,3.6621102]
[1745328343339,0.0004,89599.0,89598.0,3.6367372]
[1745328343566,0.0004,89599.0,89598.0,3.6230852]
[1745328343742,0.0004,89599.0,89598.0,3.5345952]
[1745328345280,0.0004,89599.0,89598.0,2.5697882]
[1745328345617,0.0004,89599.0,89598.0,1.19225526]
[1745328345851,0.0004,89599.0,89598.0,1.30305526]
[1745328346254,0.0004,89599.0,89598.0,1.17137526]
[1745328346469,0.0004,89599.0,89598.0,1.2851312]
[1745328346661,0.0004,89599.0,89598.0,1.6998312]
[1745328347289,0.0004,89599.0,89598.0,1.5077202]
[1745328349912,0.0004,89599.0,89598.0,1.2024752]
[1745328350130,0.0004,89599.0,89598.0,1.3076322]
[1745328350542,0.0004,89599.0,89598.0,1.2024752]
[1745328350709,0.0004,89599.0,89598.0,1.5526362]
[1745328352221,0.00464481,89600.0,89599.0,0.56321677]
[1745328352422,0.00464481,89600.0,89599.0,0.67697271]
[1745328353481,0.00464481,89600.0,89599.0,1.84243671]
[1745328355064,0.00464481,89600.0,89599.0,1.16440971]
[1745328355238,0.00464481,89600.0,89599.0,0.78222471]
[1745328358429,0.00464481,89600.0,89599.0,1.19692471]
[1745328360199,0.00464481,89600.0,89599.0,1.09167271]
[1745328360566,0.00464481,89600.0,89599.0,4.08053971]
[1745328364216,0.00464481,89600.0,89599.0,2.72423671]
[1745328364414,0.00464481,89600.0,89599.0,2.56634371]
[1745328364549,0.00464481,89600.0,89599.0,2.90634371]
[1745328370386,0.00464481,89600.0,89599.0,2.56634371]
[1745328374358,0.00464481,89600.0,89599.0,2.79826371]
[1745328374562,0.00464481,89600.0,89599.0,2.90634371]
[1745328375943,0.00464481,89600.0,89599.0,2.89634371]
[1745328379646,0.00464481,89600.0,89599.0,1.18975271]
[1745328380100,0.00464481,89600.0,89599.0,3.50732294]
[1745328380298,0.00464481,89600.0,89599.0,1.633379]
[1745328380571,0.00464481,89600.0,89587.0,0.36772]
[1745328380572,0.00564481,89600.0,89587.0,0.36772]
[1745328380807,0.0453,89599.0,89589.0,0.34]
[1745328381053,0.0453,89599.0,89587.0,0.36772]
[1745328381711,0.0453,89599.0,89588.0,0.341]
[1745328382161,0.0453,89599.0,89590.0,0.35116196]
[1745328382387,0.00564481,89600.0,89590.0,0.34]
[1745328382666,0.002,89599.0,89590.0,0.34]
[1745328382870,0.00564481,89600.0,89590.0,0.34]
[1745328383292,0.002,89599.0,89590.0,0.34]
[1745328383663,0.002,89599.0,89588.0,0.341]
[1745328384109,0.002,89599.0,89591.0,0.22323633]
[1745328384328,0.002,89599.0,89590.0,0.34]
[1745328384527,0.00564481,89600.0,89590.0,0.34]
[1745328385394,0.0944,89599.0,89591.0,0.00223218]
[1745328385606,0.0944,89599.0,89575.0,0.24560385]
[1745328385607,0.01454085,89589.0,89560.0,0.0008456]
[1745328385817,0.045,89590.0,89560.0,0.0008456]
[1745328385818,0.045,89590.0,89570.0,0.4839001]
[1745328386029,0.045,89590.0,89560.0,0.0006912]
[1745328386030,0.00223218,89589.0,89571.0,0.589835]
[1745328386228,0.00223218,89589.0,89572.0,0.197665]
[1745328386831,0.23440961,89587.0,89571.0,0.34]
[1745328386980,0.00223218,89586.0,89561.0,0.34]
[1745328387160,0.01116295,89582.0,89563.0,0.34]
[1745328387356,0.01116295,89582.0,89560.0,0.4845913]
[1745328387357,0.0561637,89576.0,89560.0,0.0006912]
[1745328387624,0.00223218,89575.0,89560.0,0.0006912]
[1745328388699,0.23441314,89586.0,89560.0,0.0006912]
[1745328388700,0.045,89588.0,89574.0,0.34]
[1745328388930,0.045,89588.0,89561.0,0.1159888]
[1745328388931,0.045,89588.0,89576.0,0.34]
[1745328389108,0.00223218,89587.0,89576.0,0.34]
[1745328389450,0.00223218,89587.0,89560.0,0.4845913]
[1745328389451,0.22325521,89584.0,89560.0,0.3406912]
[1745328389607,0.00223218,89583.0,89560.0,0.3406912]
[1745328390354,0.045,89581.0,89560.0,0.3406912]
[1745328390562,0.0474,89579.0,89560.0,0.3406912]
[1745328390758,0.00223218,89578.0,89560.0,0.3406912]
[1745328391541,0.11375594,89577.0,89560.0,0.3406912]
[1745328391759,0.00223218,89576.0,89560.0,0.3406912]
[1745328392161,0.00223218,89576.0,89560.0,0.8245913]
[1745328392370,0.00223218,89576.0,89561.0,0.00223301]
[1745328392566,0.00223218,89578.0,89560.0,0.8245913]
[1745328392763,0.00523218,89578.0,89560.0,0.8245913]
[1745328393170,0.11375594,89577.0,89560.0,0.3406912]
[1745328393396,0.00223218,89576.0,89560.0,0.3406912]
[1745328394338,0.00523218,89576.0,89560.0,0.3406912]
[1745328394906,0.00523218,89576.0,89561.0,0.499108]
[1745328395107,0.00523218,89576.0,89561.0,0.136551]
[1745328395329,0.00523218,89576.0,89560.0,0.8245913]
[1745328396613,0.00523218,89576.0,89560.0,0.0006912]
[1745328396818,0.00523218,89576.0,89560.0,0.224003]
[1745328397018,0.00523218,89576.0,89560.0,0.0006912]
[1745328397215,0.00523218,89576.0,89560.0,0.22400277]
[1745328397424,0.00523218,89576.0,89561.0,0.22331073]
[1745328397800,0.00523218,89576.0,89563.0,0.34]
[1745328398549,0.00223218,89576.0,89563.0,0.34]
[1745328398754,0.00223218,89578.0,89563.0,0.34]
[1745328399185,0.003,89576.0,89563.0,0.34]
[1745328399382,0.00223218,89575.0,89563.0,0.34]
[1745328400037,0.00223218,89575.0,89565.0,0.6626525]
[1745328400259,0.04563218,89579.0,89565.0,0.6626525]
[1745328401601,0.003,89578.0,89565.0,0.6626525]
[1745328402044,0.04563218,89579.0,89565.0,0.6626525]
[1745328402244,0.04863218,89579.0,89565.0,0.6626525]
[1745328403695,0.04563218,89579.0,89565.0,0.6626525]
[1745328403907,0.001,89578.0,89565.0,0.6626525]
[1745328404107,0.04563218,89579.0,89567.0,0.34]
[1745328404283,0.04563218,89579.0,89572.0,0.22328307]
[1745328404430,0.04663218,89579.0,89570.0,0.34]
[1745328404634,0.04563218,89579.0,89570.0,0.5632886]
[1745328404837,0.4075,89589.0,89569.0,0.22328905]
[1745328404838,0.4075,89589.0,89588.0,0.56324418]
[1745328405049,0.00464481,89600.0,89598.0,0.34]
[1745328405489,0.00464481,89600.0,89589.0,0.54589254]
[1745328405490,0.0493,89597.0,89549.0,0.01116707]
[1745328405641,0.0493,89597.0,89580.0,0.3226525]
[1745328405642,0.12829679,89596.0,89580.0,0.3226525]
[1745328406701,0.22322674,89595.0,89580.0,0.3226525]
[1745328406904,0.11375594,89594.0,89571.0,0.10716]
[1745328407106,0.11375594,89594.0,89566.0,0.10716]
[1745328407107,0.0493,89583.0,89566.0,0.10716]
[1745328407446,0.11375594,89582.0,89580.0,0.001]
[1745328407623,0.0493,89583.0,89570.0,0.3226525]
[1745328407969,0.26555799,89583.0,89580.0,0.001]
[1745328408126,0.11375594,89582.0,89567.0,0.34]
[1745328408333,0.0423,89583.0,89570.0,0.3226525]
[1745328409148,0.0423,89583.0,89571.0,0.34]
[1745328410743,0.0463,89583.0,89571.0,0.34]
[1745328410976,0.0423,89583.0,89571.0,0.34]
[1745328411374,0.04777738,89599.0,89573.0,0.42929767]
[1745328411572,0.00107738,89599.0,89586.0,0.34]
[1745328411770,0.00107738,89599.0,89587.0,0.71046336]
[1745328412111,0.00107738,89599.0,89587.0,0.56324664]
[1745328413752,0.00307738,89599.0,89587.0,0.56324664]
[1745328413957,0.00107738,89599.0,89586.0,0.34]
[1745328414354,0.00307738,89599.0,89586.0,0.34]
[1745328414556,0.00272219,89600.0,89586.0,0.13812353]
[1745328414762,0.00272219,89600.0,89586.0,0.00107738]
[1745328415498,0.001,89599.0,89586.0,0.00107738]
[1745328415700,0.09499109,89611.0,89586.0,0.00107738]
[1745328415929,0.11375594,89610.0,89586.0,0.00107738]
[1745328416857,0.11375594,89610.0,89587.0,0.22324645]
[1745328417131,0.001,89600.0,89586.0,0.00107738]
[1745328417289,0.11375594,89610.0,89586.0,0.00107738]
[1745328417497,0.11475594,89610.0,89586.0,0.00107738]
[1745328417896,0.11375594,89610.0,89586.0,0.00107738]
[1745328418300,0.11375594,89610.0,89586.0,0.22432469]
[1745328418498,0.11375594,89610.0,89590.0,0.22323904]
[1745328418745,0.11375594,89610.0,89587.0,0.22324667]
[1745328418890,0.11375594,89610.0,89600.0,0.3226525]
[1745328419097,0.11375594,89610.0,89590.0,0.3226525]
[1745328420135,0.11375594,89610.0,89586.0,0.00107738]
[1745328420333,0.01116096,89598.0,89586.0,0.00107738]
[1745328420537,0.11375594,89597.0,89586.0,0.00107738]
[1745328420902,0.046,89602.0,89580.0,0.16965748]
[1745328421150,0.11375594,89601.0,89590.0,0.3226525]
[1745328421322,0.046,89602.0,89590.0,0.3226525]
[1745328421715,0.0004227,89613.0,89590.0,0.3226525]
[1745328421927,0.0004227,89613.0,89579.0,0.100461]
[1745328421928,0.01116295,89582.0,89574.0,0.0001387]
[1745328422145,0.01116258,89585.0,89550.0,0.3226525]
[1745328422146,0.01454085,89569.0,89550.0,0.3226525]
[1745328422588,0.0257048,89574.0,89550.0,0.3226525]
[1745328422796,0.22331148,89561.0,89550.0,0.3226525]
[1745328423008,0.22331148,89561.0,89540.0,0.3226525]
[1745328423217,0.39980827,89561.0,89535.0,0.0008456]
[1745328423563,0.39380827,89561.0,89535.0,0.0008456]
[1745328424304,0.39380827,89561.0,89540.0,0.3226525]
[1745328424499,0.39680827,89561.0,89540.0,0.3226525]
[1745328424756,0.39380827,89561.0,89541.0,0.3404]
[1745328425155,0.44280827,89561.0,89541.0,0.3404]
[1745328426254,0.44280827,89561.0,89541.0,0.0004]
[1745328426662,0.43980827,89561.0,89541.0,0.0004]
[1745328427065,0.44280827,89561.0,89541.0,0.0004]
[1745328427621,0.44580827,89561.0,89541.0,0.0004]
[1745328430076,0.43980827,89561.0,89541.0,0.0004]
[1745328430354,0.44280827,89561.0,89541.0,0.0004]
[1745328430762,0.85030827,89561.0,89541.0,0.0004]
[1745328431117,0.84330827,89561.0,89541.0,0.0004]
[1745328431554,0.23786729,89555.0,89541.0,0.0004]
[1745328431749,0.23789223,89545.0,89541.0,0.0004]
[1745328431908,0.80514817,89545.0,89544.0,0.00130857]
[1745328432121,0.85334817,89545.0,89544.0,0.00130857]
[1745328432352,0.85334817,89545.0,89517.0,0.0008456]
[1745328432353,0.01116981,89527.0,89517.0,0.0008456]
[1745328432555,0.01454085,89525.0,89517.0,0.0008456]
[1745328432732,0.12829679,89525.0,89517.0,0.0008456]
[1745328433773,0.12829679,89525.0,89524.0,0.0018456]
[1745328433992,0.11375594,89525.0,89524.0,0.0018456]
[1745328434155,0.11375594,89525.0,89524.0,0.0008456]
[1745328435992,0.11375594,89525.0,89524.0,0.0018456]
[1745328436194,0.11375594,89525.0,89524.0,0.0008456]
[1745328436551,0.11375594,89525.0,89524.0,0.0018456]
[1745328437355,0.11375594,89525.0,89524.0,0.0028456]
[1745328438707,0.81132366,89525.0,89524.0,0.0028456]
[1745328438906,0.75219807,89525.0,89524.0,0.0008456]
[1745328439290,0.75219807,89525.0,89524.0,0.0018456]
[1745328440329,0.52879679,89525.0,89524.0,0.0008456]
[1745328441866,0.10675594,89525.0,89524.0,0.0008456]
[1745328442432,0.33015722,89525.0,89524.0,0.0008456]
[1745328442641,0.85165409,89525.0,89524.0,0.0008456]
[1745328443043,0.75219807,89525.0,89524.0,0.0008456]
[1745328445809,0.52879679,89525.0,89524.0,0.0008456]
[1745328446017,0.75219807,89525.0,89524.0,0.0008456]
[1745328446592,0.52179679,89525.0,89524.0,0.0008456]
[1745328446796,0.09975594,89525.0,89524.0,0.0008456]
[1745328449072,0.11429679,89525.0,89524.0,0.0008456]
[1745328449816,0.33769807,89525.0,89524.0,0.0008456]
[1745328451003,0.11429679,89525.0,89524.0,0.0008456]
[1745328451561,0.33769807,89525.0,89524.0,0.0008456]
[1745328452919,0.44295397,89525.0,89524.0,0.0008456]
[1745328453535,0.33769807,89525.0,89524.0,0.0008456]
[1745328454385,0.33069807,89525.0,89524.0,0.0008456]
[1745328455369,0.73819807,89525.0,89524.0,0.0008456]
[1745328456227,0.73919807,89525.0,89524.0,0.0008456]
[1745328457948,0.95099807,89525.0,89524.0,0.0008456]
[1745328458141,1.05267771,89525.0,89524.0,0.0008456]
[1745328458556,1.05167771,89525.0,89524.0,0.0008456]
[1745328458836,1.05267771,89525.0,89524.0,0.0008456]
[1745328459043,1.05167771,89525.0,89524.0,0.0008456]
[1745328459442,1.05367771,89525.0,89524.0,0.0008456]
[1745328459973,0.3563596,89518.0,89517.0,0.0008456]
[1745328460195,0.99052199,89518.0,89517.0,0.0008456]
[1745328460400,0.87676994,89518.0,89517.0,0.0008456]
[1745328460596,0.75836994,89518.0,89517.0,0.0008456]
[1745328460821,0.74382909,89518.0,89517.0,0.0008456]
[1745328461216,0.75836994,89518.0,89517.0,0.00098424]
[1745328462130,0.75136994,89518.0,89517.0,0.00098424]
[1745328462658,0.75236994,89518.0,89517.0,0.00098424]
[1745328463342,0.74236994,89518.0,89517.0,0.00098424]
[1745328463561,0.85976994,89518.0,89517.0,0.00098424]
[1745328463769,0.86276994,89518.0,89517.0,0.00098424]
[1745328464102,0.85976994,89518.0,89517.0,0.00098424]
[1745328464298,1.31452199,89518.0,89517.0,0.00098424]
[1745328464935,0.35637457,89512.0,89511.0,0.0004]
[1745328465182,0.87678491,89512.0,89511.0,0.00053878]
[1745328465891,0.87578491,89512.0,89511.0,0.00053878]
[1745328466481,0.87978491,89512.0,89511.0,0.00053878]
[1745328466827,0.87578491,89512.0,89511.0,0.00053878]
[1745328467185,0.76338491,89512.0,89511.0,0.00053878]
[1745328468203,0.87713696,89512.0,89511.0,0.00053878]
[1745328468420,0.76338491,89512.0,89511.0,0.00053878]
[1745328468890,0.75838491,89512.0,89511.0,0.00053878]
[1745328469282,0.76338491,89512.0,89511.0,0.00053878]
[1745328469938,0.75638491,89512.0,89511.0,0.00053878]
[1745328470331,0.87378491,89512.0,89511.0,0.00053878]
[1745328470974,0.91265022,89512.0,89511.0,0.00053878]
[1745328471178,0.87378491,89512.0,89511.0,0.00053878]
[1745328472273,0.88314759,89512.0,89511.0,0.00053878]
[1745328472470,0.87814759,89512.0,89511.0,0.00053878]
[1745328474054,0.74637957,89510.0,89509.0,1e-08]
[1745328474340,0.97388756,89510.0,89509.0,1e-08]
[1745328474788,0.23799704,89503.0,89481.0,0.0012462]
[1745328474998,0.40330204,89501.0,89500.0,1e-08]
[1745328475201,0.39965798,89501.0,89500.0,1e-08]
[1745328476391,0.40065798,89501.0,89500.0,1e-08]
[1745328476815,0.39965798,89501.0,89500.0,1e-08]
[1745328477337,0.39965798,89501.0,89500.0,0.00100001]
[1745328477532,0.39265798,89501.0,89500.0,1e-08]
[1745328477841,0.39265798,89501.0,89500.0,0.00100001]
[1745328478331,0.39265798,89501.0,89481.0,0.0012462]
[1745328478332,0.22347117,89497.0,89481.0,0.0012462]
[1745328478566,0.33722711,89497.0,89481.0,0.0012462]
[1745328479596,0.7428815,89497.0,89481.0,0.0012462]
[1745328479796,0.7428815,89497.0,89481.0,0.0498462]
[1745328480209,0.51941033,89497.0,89481.0,0.0498462]
[1745328480418,0.40565439,89497.0,89496.0,0.0018462]
[1745328480651,0.40565439,89517.0,89500.0,0.001]
[1745328480854,0.01117131,89515.0,89503.0,0.0459]
[1745328481045,0.23460279,89513.0,89503.0,0.0459]
[1745328481263,0.11375594,89514.0,89503.0,0.0459]
[1745328481264,0.11375594,89512.0,89503.0,0.0459]
[1745328482375,0.40565439,89517.0,89506.0,0.001]
[1745328482591,0.11375594,89516.0,89506.0,0.001]
[1745328482741,0.11375594,89516.0,89507.0,0.3226525]
[1745328483150,0.12492712,89516.0,89506.0,0.001]
[1745328483397,0.11375594,89516.0,89506.0,0.001]
[1745328483644,0.11375594,89516.0,89506.0,0.006]
[1745328483965,0.11375594,89516.0,89506.0,0.001]
[1745328484177,0.11375594,89516.0,89507.0,0.004]
[1745328484320,0.01117131,89515.0,89507.0,0.004]
[1745328484521,0.11375594,89516.0,89507.0,0.004]
[1745328484722,0.01454085,89514.0,89507.0,0.004]
[1745328484927,0.11375594,89513.0,89507.0,0.004]
[1745328485129,0.01117168,89512.0,89507.0,0.004]
[1745328485359,0.11375594,89511.0,89503.0,0.0459]
[1745328485663,0.11375594,89511.0,89506.0,0.004]
[1745328485816,0.01117193,89510.0,89506.0,0.004]
[1745328486013,0.11375594,89509.0,89503.0,0.0459]
[1745328486220,0.124928,89509.0,89507.0,0.003]
[1745328486448,0.22347117,89497.0,89490.0,0.046]
[1745328486624,0.11375594,89497.0,89490.0,0.046]
[1745328486824,0.11175594,89497.0,89490.0,0.046]
[1745328488077,0.33522711,89497.0,89482.0,0.001]
[1745328488276,0.33522711,89497.0,89482.0,0.047]
[1745328488472,0.33222711,89497.0,89482.0,0.047]
[1745328488828,0.34676796,89497.0,89482.0,0.046]
[1745328489076,0.34676796,89497.0,89496.0,0.0068462]
[1745328489395,0.34676796,89497.0,89496.0,0.0018462]
[1745328489598,0.34676796,89497.0,89496.0,0.0048462]
[1745328489770,0.34676796,89497.0,89496.0,0.0018462]
[1745328490229,0.34676796,89497.0,89496.0,0.0048462]
[1745328490429,0.10875594,89497.0,89496.0,0.0048462]
[1745328490605,0.33222711,89497.0,89496.0,0.0048462]
[1745328491578,0.33222711,89497.0,89496.0,0.0018462]
[1745328491707,0.33222711,89497.0,89496.0,0.0038462]
[1745328491912,0.34676796,89497.0,89496.0,0.0038462]
[1745328492225,0.34676796,89497.0,89496.0,0.0018462]
[1745328492478,0.34676796,89497.0,89496.0,0.0038462]
[1745328493086,0.33976796,89497.0,89496.0,0.0038462]
[1745328493257,0.33976796,89497.0,89496.0,0.0018462]
[1745328493466,0.33976796,89497.0,89496.0,0.0028462]
[1745328493832,0.40565439,89502.0,89496.0,0.0028462]
[1745328494036,0.0111733,89499.0,89496.0,0.0028462]
[1745328494257,0.23463948,89499.0,89496.0,0.0028462]
[1745328494676,0.11375594,89498.0,89496.0,0.0018462]
[1745328495650,0.11375594,89498.0,89496.0,0.0038462]